[Event "20th Prague Open 2022"]
[Site "Prague"]
[Date "2022.01.07"]
[Round "1.13"]
[White "Hrabusa, Matej"]
[Black "Sosovickova, Jana"]
[Result "1-0"]
[ECO "D03"]
[WhiteElo "2369"]
[BlackElo "1974"]
[Annotator "NA"]
[PlyCount "101"]
[EventDate "2022.01.07"]
[EventType "swiss"]
[EventCountry "CZE"]
[SourceTitle "playchess.com"]
[Source "ChessBase"]
[SourceQuality "1"]
[TimeControl "40/5400+30:1800+30"]

1. d4 {[%emt 0:00:04]} d5 {[%emt 0:00:05]} 2. Nf3 {[%emt 0:00:10]} Nf6 {[%emt 0:00:18]} 3. Bg5 {[%emt 0:01:04]} e6 {[%emt 0:02:03]} 4. e3 {[%emt 0:00:20]} Be7 {[%emt 0:00:46]} 5. Nbd2 {[%emt 0:00:13]} Nbd7 {[%emt 0:01:20]} 6. Bd3 {[%emt 0:00:32]} b6 {[%emt 0:01:56] seems to push 6...c5 aside.} 7. Ne5 {[%emt 0:04:16]} Nxe5 {[%emt 0:04:36]} 8. dxe5 {[%emt 0:00:06]} Nd7 {[%emt 0:00:26]} 9. Bf4 {[%emt 0:02:44]} Bb7 {[%emt 0:02:47] [#]} 10. h4 $146 {[%emt 0:02:07]} ({Predecessor:} 10. Bg3 O-O 11. h4 Nc5 12. Nf3 h6 13. Bf4 f5 14. Nd4 Nxd3+ 15. cxd3 Qd7 16. Qh5 {0-1 (63) Camacho Collados,M (2446)-Oparin,G (2654) Ciudad Real 2021}) 10... Nc5 {[%emt 0:07:02]} 11. Bb5+ {[%emt 0:01:58]} c6 {[%emt 0:00:39]} 12. Bf1 {[%emt 0:01:06]} Qc7 {[%emt 0:07:03]} 13. Qg4 {[%emt 0:02:33]} g6 {[%emt 0:03:16]} 14. h5 {[%emt 0:02:30]} O-O-O {[%emt 0:01:09]} 15. O-O-O {[%emt 0:02:08]} g5 {[%emt 0:07:21]} 16. Bh2 {[%emt 0:03:47]} h6 {[%emt 0:00:44]} 17. Kb1 {[%emt 0:07:07]} Kb8 {[%emt 0:04:12]} 18. Be2 {[%emt 0:03:07]} Ka8 {[%emt 0:02:32]} 19. Rhf1 {[%emt 0:01:52]} Rhg8 $11 {[%emt 0:02:31]} 20. Qh3 {[%emt 0:05:23]} Qc8 {[%emt 0:06:08]} 21. f4 {[%emt 0:04:16]} f5 {[%emt 0:14:22]} 22. g4 {[%emt 0:05:12]} Rdf8 {[%emt 0:02:42]} 23. Rf2 {[%emt 0:03:52]} Ne4 {[%emt 0:03:39]} 24. Nxe4 {[%emt 0:01:33]} fxe4 {[%emt 0:00:27]} 25. f5 {[%emt 0:06:02]} Rf7 {[%emt 0:01:20]} 26. c4 {[%emt 0:04:15]} Bc5 {[%emt 0:04:04]} 27. cxd5 {[%emt 0:05:46]} cxd5 {[%emt 0:00:43]} 28. Rc1 {[%emt 0:00:15]} Qd7 {[%emt 0:01:57]} 29. fxe6 {[%emt 0:01:55]} Qxe6 {[%emt 0:00:52]} 30. Rf5 {[%emt 0:00:36]} Rgf8 {[%emt 0:01:22]} 31. Rcf1 {[%emt 0:01:38]} Bc6 {[%emt 0:04:09]} 32. Qg3 {[%emt 0:02:51]} Be8 {[%emt 0:03:26]} 33. Rxf7 {[%emt 0:03:52]} Rxf7 {[%emt 0:00:55]} 34. Rf6 {[%emt 0:00:15]} Rxf6 {[%emt 0:01:09]} 35. exf6 {[%emt 0:00:06]} Qc8 {[%emt 0:00:21]} 36. Qe5 {[%emt 0:03:55]} Bf7 {[%emt 0:01:51]} 37. Ba6 {[%emt 0:03:32]} Qd8 {[%emt 0:01:14]} 38. a4 {[%emt 0:05:39]} Bxe3 {[%emt 0:05:21]} 39. Bb5 {[%emt 0:01:14]} Kb7 {[%emt 0:01:29]} 40. Qe7+ {[%emt 0:00:24]} Qxe7 {[%emt 0:01:04]} 41. fxe7 {[%emt 0:30:07]} Bd4 {[%emt 0:31:00]} 42. e8=Q {[%emt 0:01:36]} Bxe8 {[%emt 0:00:11]} 43. Bxe8 {[%emt 0:00:06]} a6 {[%emt 0:00:42]} 44. Kc2 {[%emt 0:01:16]} Bg7 {[%emt 0:00:00]} 45. b4 {[%emt 0:00:00]} b5 {[%emt 0:00:00]} 46. axb5 {[%emt 0:00:00]} axb5 {[%emt 0:00:00]} 47. Bxb5 {[%emt 0:00:00]} d4 {[%emt 0:00:00]} 48. Be8 {[%emt 0:00:00]} Kb6 {[%emt 0:00:00]} 49. Bg6 {[%emt 0:00:00]} e3 {[%emt 0:00:00]} 50. Kd3 {[%emt 0:00:00]} Kb5 {[%emt 0:00:00]} 51. Bd6 {[%emt 0:00:00]} 1-0

[Event "20th Prague Open 2022"]
[Site "Prague"]
[Date "2022.01.07"]
[Round "1.14"]
[White "Duzy, Stefan"]
[Black "Carlsson, Ludvig"]
[Result "0-1"]
[ECO "B23"]
[WhiteElo "1970"]
[BlackElo "2355"]
[Annotator "NA"]
[PlyCount "84"]
[EventDate "2022.01.07"]
[EventType "swiss"]
[EventCountry "CZE"]
[SourceTitle "playchess.com"]
[Source "ChessBase"]
[SourceQuality "1"]
[TimeControl "40/5400+30:1800+30"]

1. e4 {[%emt 0:00:28]} c5 {[%emt 0:01:32]} 2. Ne2 {[%emt 0:00:15]} Nc6 {[%emt 0:00:55]} 3. Nbc3 {[%emt 0:00:14]} g6 {[%emt 0:00:52]} 4. d3 {[%emt 0:01:35]} Bg7 {[%emt 0:04:46]} 5. Be3 {[%emt 0:00:41]} Nd4 $11 {[%emt 0:03:25]} 6. Qd2 {[%emt 0:00:46]} d6 {[%emt 0:05:03]} 7. Nd1 {[%emt 0:00:26]} d5 {[%emt 0:17:30]} 8. c3 {[%emt 0:48:07]} Nxe2 {[%emt 0:02:05]} 9. Qxe2 {[%emt 0:00:50]} b6 {[%emt 0:10:56]} 10. c4 {[%emt 0:04:09]} d4 {[%emt 0:02:36]} 11. Bd2 {[%emt 0:00:14]} h5 {[%emt 0:04:36]} 12. g3 {[%emt 0:06:07]} e5 {[%emt 0:12:47]} 13. h4 {[%emt 0:02:47]} Nh6 {[%emt 0:05:15]} 14. Bh3 {[%emt 0:08:07]} Bxh3 {[%emt 0:01:51]} 15. Rxh3 {[%emt 0:00:12]} Qd7 {[%emt 0:00:04]} 16. Rh1 {[%emt 0:02:11]} O-O {[%emt 0:00:35]} 17. f3 {[%emt 0:01:43]} f5 {[%emt 0:01:59]} 18. Nf2 {[%emt 0:01:23]} Rf7 {[%emt 0:05:52]} 19. O-O-O {[%emt 0:11:31]} Raf8 {[%emt 0:00:45]} 20. Rdf1 {[%emt 0:00:44]} b5 {[%emt 0:07:13]} 21. cxb5 {[%emt 0:05:36]} Qxb5 {[%emt 0:01:06]} 22. Kb1 {[%emt 0:00:15]} f4 {[%emt 0:03:05]} 23. gxf4 {[%emt 0:01:25]} exf4 {[%emt 0:00:10]} 24. Rfg1 {[%emt 0:00:25]} Rf6 {[%emt 0:01:24]} 25. Nh3 {[%emt 0:00:27]} Kh7 {[%emt 0:01:39]} 26. Ng5+ {[%emt 0:01:34]} Kh8 {[%emt 0:00:06]} 27. Nh3 {[%emt 0:00:10]} Qa4 {[%emt 0:01:44]} 28. Qd1 {[%emt 0:01:14]} Qa6 {[%emt 0:00:47]} 29. Qc2 {[%emt 0:00:30]} Ng8 {[%emt 0:01:04]} 30. Rg5 {[%emt 0:00:26]} Rc6 {[%emt 0:01:46]} 31. Nxf4 {[%emt 0:00:49]} Bh6 {[%emt 0:00:13]} 32. Nh3 {[%emt 0:00:36]} Bxg5 {[%emt 0:00:43]} 33. Nxg5 {[%emt 0:00:03]} c4 {[%emt 0:00:08]} 34. dxc4 {[%emt 0:00:15]} Rxc4 {[%emt 0:00:05]} 35. Qb3 {[%emt 0:00:19]} Ne7 {[%emt 0:01:14]} 36. f4 {[%emt 0:00:23]} Nc6 {[%emt 0:00:16]} 37. f5 {[%emt 0:00:57]} Rb8 {[%emt 0:01:47]} 38. Qf3 {[%emt 0:00:25]} Ra4 {[%emt 0:00:51]} 39. fxg6 {[%emt 0:00:58]} Rxb2+ {[%emt 0:00:09]} 40. Kxb2 {[%emt 0:00:34]} Rxa2+ {[%emt 0:00:10]} 41. Kb1 {[%emt 0:05:11]} Ra1+ {[%emt 0:00:17]} 42. Kc2 {[%emt 0:00:04]} Qa4+ {[%emt 0:02:01]} 0-1

[Event "20th Prague Open 2022"]
[Site "Prague"]
[Date "2022.01.07"]
[Round "1.15"]
[White "Sorm, Daniel"]
[Black "Bochnickova, Simona"]
[Result "1-0"]
[ECO "A82"]
[WhiteElo "2348"]
[BlackElo "1963"]
[Annotator "ChessBase"]
[PlyCount "53"]
[EventDate "2022.01.07"]
[EventType "swiss"]
[EventCountry "CZE"]
[SourceTitle "playchess.com"]
[Source "ChessBase"]
[SourceQuality "1"]
[TimeControl "40/5400+30:1800+30"]

1. d4 {[%emt 0:00:03]} f5 {[%emt 0:00:14]} 2. e4 {[%emt 0:00:15]} fxe4 {[%emt 0:02:36]} 3. Nc3 {[%emt 0:00:19]} g6 {[%emt 0:11:11]} 4. h4 {[%emt 0:03:57]} Bg7 {[%emt 0:02:17]} 5. h5 {[%emt 0:00:12]} d5 {[%emt 0:03:14]} 6. f3 {[%emt 0:01:10]} c5 {[%emt 0:19:56]} 7. dxc5 {[%emt 0:05:24]} Qa5 {[%emt 0:02:21]} 8. Bd2 {[%emt 0:11:31]} Qxc5 {[%emt 0:02:00]} 9. fxe4 {[%emt 0:00:55]} dxe4 {[%emt 0:09:15]} 10. Nxe4 {[%emt 0:05:16]} Qe5 {[%emt 0:00:58]} 11. Bd3 {[%emt 0:00:52]} Qxb2 {[%emt 0:10:52]} 12. Rb1 {[%emt 0:00:50]} Qxa2 {[%emt 0:00:12]} 13. Ng5 {[%emt 0:07:50]} Bg4 {[%emt 0:07:18]} 14. N1f3 {[%emt 0:08:59]} Nc6 {[%emt 0:00:37]} 15. hxg6 {[%emt 0:02:13]} Nf6 {[%emt 0:05:26]} 16. gxh7 {[%emt 0:09:31]} O-O-O {[%emt 0:02:42]} 17. O-O {[%emt 0:01:48]} Ne5 {[%emt 0:02:30]} 18. Be2 {[%emt 0:14:43]} Bxf3 {[%emt 0:05:29]} 19. Bxf3 {[%emt 0:00:52]} Nxf3+ {[%emt 0:00:06]} 20. Qxf3 {[%emt 0:00:22]} Qd5 {[%emt 0:00:06]} 21. Qc3+ {[%emt 0:04:34]} Kb8 {[%emt 0:02:37]} 22. Bf4+ {[%emt 0:00:34]} Ka8 {[%emt 0:00:33]} 23. Ra1 {[%emt 0:05:09]} a6 {[%emt 0:02:03]} 24. Ra5 {[%emt 0:00:32]} Qd4+ {[%emt 0:01:39]} 25. Qxd4 {[%emt 0:00:55]} Rxd4 {[%emt 0:00:01]} 26. Ne6 {[%emt 0:00:05]} Nh5 {[%emt 0:01:43]} 27. Rxh5 {[%emt 0:00:34]} 1-0

[Event "20th Prague Open 2022"]
[Site "Prague"]
[Date "2022.01.07"]
[Round "1.16"]
[White "Blumel, Otto"]
[Black "Mikes, Jan"]
[Result "0-1"]
[ECO "B13"]
[WhiteElo "1945"]
[BlackElo "2329"]
[Annotator "ChessBase"]
[PlyCount "38"]
[EventDate "2022.01.07"]
[EventType "swiss"]
[EventCountry "CZE"]
[SourceTitle "playchess.com"]
[Source "ChessBase"]
[SourceQuality "1"]
[TimeControl "40/5400+30:1800+30"]

1. e4 {[%emt 0:00:40]} c6 {[%emt 0:00:22]} 2. d4 {[%emt 0:00:39]} d5 {[%emt 0:00:06]} 3. exd5 {[%emt 0:00:09]} cxd5 {[%emt 0:00:05]} 4. c3 {[%emt 0:00:06]} Nc6 {[%emt 0:01:01]} 5. Nf3 {[%emt 0:00:12]} Qc7 {[%emt 0:00:48]} 6. Bd3 {[%emt 0:04:49]} Bg4 {[%emt 0:02:12]} 7. O-O {[%emt 0:06:25]} e6 {[%emt 0:01:09]} 8. Nbd2 {[%emt 0:00:22]} Bd6 {[%emt 0:00:47]} 9. h3 {[%emt 0:01:02]} Bh5 {[%emt 0:00:10]} 10. Re1 {[%emt 0:00:15]} Nge7 {[%emt 0:01:17]} 11. Be2 {[%emt 0:03:20]} Bg6 {[%emt 0:16:49]} 12. Nf1 {[%emt 0:02:37]} a6 {[%emt 0:01:48]} 13. Ne3 {[%emt 0:03:48]} O-O {[%emt 0:03:59]} 14. Nh4 {[%emt 0:06:02]} Be4 {[%emt 0:01:45]} 15. Bd3 {[%emt 0:05:07]} f5 {[%emt 0:02:22]} 16. Nf3 {[%emt 0:02:53]} h6 {[%emt 0:00:36]} 17. Bf1 {[%emt 0:01:04]} Ng6 {[%emt 0:09:50]} 18. Nd2 {[%emt 0:03:28]} Nf4 {[%emt 0:01:37]} 19. Nb3 {[%emt 0:01:16]} Nxh3+ 0-1

[Event "20th Prague Open 2022"]
[Site "Prague"]
[Date "2022.01.07"]
[Round "1.19"]
[White "Acor, Corey"]
[Black "Vavruska, Antonin"]
[Result "1-0"]
[ECO "C00"]
[WhiteElo "2303"]
[BlackElo "1932"]
[Annotator "ChessBase"]
[PlyCount "63"]
[EventDate "2022.01.07"]
[EventType "swiss"]
[EventCountry "CZE"]
[SourceTitle "playchess.com"]
[Source "ChessBase"]
[SourceQuality "1"]
[TimeControl "40/5400+30:1800+30"]

1. e4 {[%emt 0:00:05]} e6 {[%emt 0:00:00]} 2. d3 {[%emt 0:00:11]} d5 {[%emt 0:00:00]} 3. Nd2 {[%emt 0:00:06]} Nf6 {[%emt 0:05:12]} 4. g3 {[%emt 0:00:34]} dxe4 {[%emt 0:04:27]} 5. dxe4 {[%emt 0:00:09]} e5 {[%emt 0:01:01]} 6. Ngf3 {[%emt 0:01:10]} Bc5 {[%emt 0:00:47]} 7. Bg2 {[%emt 0:00:15]} Nc6 {[%emt 0:00:22]} 8. O-O {[%emt 0:00:09]} O-O {[%emt 0:00:08]} 9. Qe2 {[%emt 0:00:56]} Qe7 {[%emt 0:01:38]} 10. c3 {[%emt 0:02:13]} a5 {[%emt 0:00:49]} 11. Nc4 {[%emt 0:01:02]} b6 {[%emt 0:17:19]} 12. Ne3 {[%emt 0:01:12]} Ba6 {[%emt 0:01:12]} 13. c4 {[%emt 0:00:58]} Bxe3 {[%emt 0:03:11]} 14. Bxe3 {[%emt 0:03:23]} Rad8 {[%emt 0:00:09]} 15. Rfd1 {[%emt 0:01:24]} Rxd1+ {[%emt 0:09:03]} 16. Rxd1 {[%emt 0:00:07]} Rd8 {[%emt 0:00:04]} 17. b3 {[%emt 0:06:55]} Bc8 {[%emt 0:01:14]} 18. Rxd8+ {[%emt 0:03:09]} Qxd8 {[%emt 0:01:18]} 19. c5 {[%emt 0:04:23]} Ng4 {[%emt 0:20:22]} 20. Bg5 {[%emt 0:03:02]} Nf6 {[%emt 0:02:59]} 21. cxb6 {[%emt 0:04:56]} cxb6 {[%emt 0:00:01]} 22. h3 {[%emt 0:01:40]} h6 {[%emt 0:04:53]} 23. Be3 {[%emt 0:00:33]} Nd7 {[%emt 0:08:44]} 24. Qb5 {[%emt 0:01:44]} Nb4 {[%emt 0:00:36]} 25. Nxe5 {[%emt 0:01:10]} Nxe5 {[%emt 0:00:50]} 26. Qxe5 {[%emt 0:00:09]} Nxa2 {[%emt 0:01:44]} 27. Qb8 {[%emt 0:00:50]} Kh7 {[%emt 0:00:48]} 28. Kh2 {[%emt 0:01:11]} Qd7 {[%emt 0:01:05]} 29. Qxb6 {[%emt 0:03:51]} a4 {[%emt 0:00:18]} 30. e5 {[%emt 0:02:28]} Nc3 {[%emt 0:01:52]} 31. Qb4 {[%emt 0:04:47]} Nd5 {[%emt 0:03:47]} 32. Qe4+ {[%emt 0:00:15]} 1-0

[Event "20th Prague Open 2022"]
[Site "Prague"]
[Date "2022.01.07"]
[Round "1.20"]
[White "Zelezny, Jan"]
[Black "Mannion, Stephen R"]
[Result "0-1"]
[ECO "C50"]
[WhiteElo "1920"]
[BlackElo "2267"]
[Annotator "NA"]
[PlyCount "82"]
[EventDate "2022.01.07"]
[EventType "swiss"]
[EventCountry "CZE"]
[SourceTitle "playchess.com"]
[Source "ChessBase"]
[SourceQuality "1"]
[TimeControl "40/5400+30:1800+30"]

1. e4 {[%emt 0:00:02]} e5 {[%emt 0:00:06]} 2. Nf3 {[%emt 0:00:04]} Nc6 {[%emt 0:00:06]} 3. Bc4 {[%emt 0:00:07]} Bc5 {[%emt 0:00:06]} 4. O-O {[%emt 0:00:15]} Nf6 {[%emt 0:00:10]} 5. d4 {[%emt 0:00:11]} Bxd4 {[%emt 0:00:26]} 6. Nxd4 {[%emt 0:00:08]} Nxd4 {[%emt 0:00:05]} 7. Bg5 {[%emt 0:00:07]} h6 {[%emt 0:08:31]} 8. Bh4 {[%emt 0:00:05]} g5 {[%emt 0:07:24]} 9. f4 {[%emt 0:00:24]} d5 {[%emt 0:35:25]} 10. fxg5 {[%emt 0:21:11]} Bg4 {[%emt 0:24:22]} 11. Qe1 {[%emt 0:03:17]} dxc4 {[%emt 0:04:22]} 12. g6 {[%emt 0:15:42]} Ne2+ {[%emt 0:00:53]} 13. Kh1 {[%emt 0:00:54]} Nf4 {[%emt 0:00:04]} 14. Rxf4 {[%emt 0:07:16]} exf4 {[%emt 0:00:09]} 15. e5 {[%emt 0:00:20]} O-O {[%emt 0:04:32]} 16. Bxf6 {[%emt 0:01:09]} Qd1 {[%emt 0:00:15]} 17. Qxd1 {[%emt 0:02:34]} Bxd1 {[%emt 0:00:02]} 18. Nc3 {[%emt 0:01:17]} Bxc2 {[%emt 0:01:14]} 19. g7 {[%emt 0:00:10]} Rfd8 {[%emt 0:00:36]} 20. Rf1 {[%emt 0:05:59]} Bg6 {[%emt 0:05:10]} 21. Rxf4 {[%emt 0:01:40]} b5 {[%emt 0:00:01]} 22. Rh4 {[%emt 0:06:07]} h5 {[%emt 0:00:45]} 23. h3 {[%emt 0:03:10]} b4 {[%emt 0:01:06]} 24. Nb5 {[%emt 0:04:01]} Rd5 {[%emt 0:01:05]} 25. Nxc7 {[%emt 0:00:51]} Rd1+ {[%emt 0:00:19]} 26. Kh2 {[%emt 0:00:06]} c3 {[%emt 0:00:20]} 27. Nxa8 {[%emt 0:12:13]} cxb2 {[%emt 0:00:54]} 28. Rc4 {[%emt 0:00:52]} Bf5 {[%emt 0:00:35]} 29. Rxb4 {[%emt 0:05:24]} b1=Q {[%emt 0:00:09]} 30. Rxb1 {[%emt 0:00:10]} Rxb1 {[%emt 0:00:47]} 31. Nc7 {[%emt 0:00:34]} Be6 {[%emt 0:01:20]} 32. a3 {[%emt 0:04:22]} Rb3 {[%emt 0:00:24]} 33. Ne8 {[%emt 0:02:18]} Bd7 {[%emt 0:01:06]} 34. Nd6 {[%emt 0:00:37]} Rxa3 {[%emt 0:00:03]} 35. Ne4 {[%emt 0:00:33]} Re3 {[%emt 0:00:29]} 36. Ng5 {[%emt 0:01:03]} a5 {[%emt 0:00:42]} 37. g4 {[%emt 0:00:57]} hxg4 {[%emt 0:00:12]} 38. h4 {[%emt 0:00:21]} g3+ {[%emt 0:00:26]} 39. Kg1 {[%emt 0:01:22]} Bc6 {[%emt 0:00:19]} 40. Kf1 {[%emt 0:01:24]} g2+ {[%emt 0:00:13]} 41. Kf2 {[%emt 0:30:46]} Re2+ {[%emt 0:31:12]} 0-1

[Event "20th Prague Open 2022"]
[Site "Prague"]
[Date "2022.01.07"]
[Round "1.21"]
[White "Ondrus, Martin"]
[Black "Zelbova, Lada"]
[Result "1/2-1/2"]
[ECO "B90"]
[WhiteElo "2267"]
[BlackElo "1886"]
[Annotator "ChessBase"]
[PlyCount "163"]
[EventDate "2022.01.07"]
[EventType "swiss"]
[EventCountry "CZE"]
[SourceTitle "playchess.com"]
[Source "ChessBase"]
[SourceQuality "1"]
[TimeControl "40/5400+30:1800+30"]

1. e4 {[%emt 0:00:04]} c5 {[%emt 0:00:05]} 2. Nf3 {[%emt 0:00:04]} d6 {[%emt 0:00:08]} 3. d4 {[%emt 0:00:04]} cxd4 {[%emt 0:00:05]} 4. Nxd4 {[%emt 0:00:02]} Nf6 {[%emt 0:00:09]} 5. Nc3 {[%emt 0:00:03]} a6 {[%emt 0:00:05]} 6. Be3 {[%emt 0:00:44]} e5 {[%emt 0:00:20]} 7. Nb3 {[%emt 0:00:01]} Be6 {[%emt 0:00:31]} 8. f3 {[%emt 0:00:02]} Be7 {[%emt 0:00:34]} 9. Qd2 {[%emt 0:00:05]} O-O {[%emt 0:00:16]} 10. O-O-O {[%emt 0:00:11]} a5 {[%emt 0:00:54]} 11. Bb5 {[%emt 0:00:26]} Bd7 {[%emt 0:07:57]} 12. a4 {[%emt 0:01:28]} Nc6 {[%emt 0:03:36]} 13. g4 {[%emt 0:00:10]} Nb4 {[%emt 0:02:08]} 14. g5 {[%emt 0:00:21]} Nh5 {[%emt 0:00:40]} 15. Kb1 {[%emt 0:04:02]} Be6 {[%emt 0:05:07]} 16. h4 {[%emt 0:03:00]} Qc7 {[%emt 0:05:28]} 17. Qf2 {[%emt 0:01:49]} Nf4 {[%emt 0:23:51]} 18. Bxf4 {[%emt 0:06:48]} exf4 {[%emt 0:00:30]} 19. Nd4 {[%emt 0:00:37]} Rfd8 {[%emt 0:05:13]} 20. Rhe1 {[%emt 0:05:27]} Bf8 {[%emt 0:01:25]} 21. h5 {[%emt 0:03:37]} g6 {[%emt 0:04:15]} 22. h6 {[%emt 0:01:25]} Qc5 {[%emt 0:02:22]} 23. Qh4 {[%emt 0:01:27]} Be7 {[%emt 0:03:48]} 24. Rg1 {[%emt 0:00:06]} Nc6 {[%emt 0:00:30]} 25. Nxe6 {[%emt 0:02:23]} fxe6 {[%emt 0:00:06]} 26. Qxf4 {[%emt 0:00:32]} Rf8 {[%emt 0:01:48]} 27. Qg4 {[%emt 0:00:33]} Rf7 {[%emt 0:10:58]} 28. Qxe6 {[%emt 0:02:34]} Bxg5 {[%emt 0:01:22]} 29. Bc4 {[%emt 0:00:25]} Nd8 {[%emt 0:00:56]} 30. Qd5 {[%emt 0:00:13]} Qxd5 {[%emt 0:00:39]} 31. Bxd5 {[%emt 0:00:01]} Bxh6 {[%emt 0:00:22]} 32. Nb5 {[%emt 0:00:51]} Be3 {[%emt 0:01:33]} 33. Rg4 {[%emt 0:02:48]} Bc5 {[%emt 0:00:27]} 34. f4 {[%emt 0:01:35]} Kg7 {[%emt 0:00:45]} 35. Bxf7 {[%emt 0:00:05]} Nxf7 {[%emt 0:00:06]} 36. Nc7 {[%emt 0:02:47]} Rc8 {[%emt 0:01:23]} 37. Ne6+ {[%emt 0:00:03]} Kf6 {[%emt 0:00:12]} 38. Nxc5 {[%emt 0:00:07]} Rxc5 {[%emt 0:00:31]} 39. b3 {[%emt 0:00:53]} b6 {[%emt 0:02:17]} 40. Kb2 {[%emt 0:00:30]} Rh5 {[%emt 0:09:14]} 41. Kc3 {[%emt 0:32:48]} Ke6 {[%emt 0:32:37]} 42. Rgg1 {[%emt 0:14:37]} Rc5+ {[%emt 0:05:39]} 43. Kd3 {[%emt 0:00:15]} g5 {[%emt 0:00:00]} 44. Rdf1 {[%emt 0:00:00]} gxf4 {[%emt 0:00:00]} 45. Rxf4 {[%emt 0:00:00]} Ne5+ {[%emt 0:00:00]} 46. Kd2 {[%emt 0:00:00]} Ng6 {[%emt 0:00:00]} 47. Rfg4 {[%emt 0:00:00]} Ne5 {[%emt 0:00:00]} 48. R4g3 {[%emt 0:00:00]} h5 {[%emt 0:00:00]} 49. c4 {[%emt 0:00:00]} Ng4 {[%emt 0:00:00]} 50. Kd3 {[%emt 0:00:00]} Rg5 {[%emt 0:00:00]} 51. Kd4 {[%emt 0:00:00]} Ke7 {[%emt 0:00:00]} 52. Rh3 {[%emt 0:00:00]} Re5 {[%emt 0:00:00]} 53. Rf1 {[%emt 0:00:00]} Nf6 {[%emt 0:00:00]} 54. Rh4 {[%emt 0:00:00]} Ke6 {[%emt 0:00:00]} 55. Rhf4 {[%emt 0:00:00]} Nd7 {[%emt 0:00:00]} 56. Rf7 {[%emt 0:00:00]} h4 {[%emt 0:00:00]} 57. Rh7 {[%emt 0:00:00]} Nc5 {[%emt 0:00:00]} 58. Rh6+ {[%emt 0:00:00]} Ke7 {[%emt 0:00:13]} 59. Rxh4 {[%emt 0:00:00]} Nxb3+ {[%emt 0:00:09]} 60. Ke3 {[%emt 0:00:00]} Nc5 {[%emt 0:00:49]} 61. Ra1 {[%emt 0:00:00]} Ke6 {[%emt 0:03:42]} 62. Ra2 {[%emt 0:00:00]} Ke7 {[%emt 0:00:08]} 63. Kf3 {[%emt 0:00:00]} Kd7 {[%emt 0:01:05]} 64. Rf4 {[%emt 0:00:00]} Ke6 {[%emt 0:00:57]} 65. Ra3 {[%emt 0:03:34]} Rh5 {[%emt 0:01:15]} 66. Kg4 {[%emt 0:00:37]} Re5 {[%emt 0:00:18]} 67. Re3 {[%emt 0:04:17]} Nxa4 {[%emt 0:01:05]} 68. Rf5 {[%emt 0:00:07]} Nc5 {[%emt 0:01:13]} 69. Kf4 {[%emt 0:00:30]} a4 {[%emt 0:01:06]} 70. Rxe5+ {[%emt 0:00:12]} dxe5+ {[%emt 0:00:05]} 71. Kf3 {[%emt 0:00:42]} Nb3 {[%emt 0:00:53]} 72. Rd3 {[%emt 0:01:23]} Nd4+ {[%emt 0:00:31]} 73. Kg4 {[%emt 0:00:41]} b5 {[%emt 0:01:13]} 74. cxb5 {[%emt 0:00:11]} Nxb5 {[%emt 0:00:08]} 75. Rh3 {[%emt 0:01:16]} Kd6 {[%emt 0:00:51]} 76. Kf5 {[%emt 0:02:27]} a3 {[%emt 0:00:34]} 77. Rh6+ {[%emt 0:00:37]} Kc5 {[%emt 0:00:10]} 78. Kxe5 {[%emt 0:00:21]} Kb4 {[%emt 0:00:45]} 79. Ra6 {[%emt 0:03:09]} Kb3 {[%emt 0:00:12]} 80. Ra5 {[%emt 0:00:39]} Kb4 {[%emt 0:00:26]} 81. Ra8 {[%emt 0:00:26]} Kb3 {[%emt 0:00:11]} 82. Rxa3+ {[%emt 0:01:01]} 1/2-1/2

[Event "20th Prague Open 2022"]
[Site "Prague"]
[Date "2022.01.07"]
[Round "1.22"]
[White "Zelba, Lukas"]
[Black "Unneland, Mathias"]
[Result "0-1"]
[ECO "D02"]
[WhiteElo "1919"]
[BlackElo "2262"]
[Annotator "NA"]
[PlyCount "90"]
[EventDate "2022.01.07"]
[EventType "swiss"]
[EventCountry "CZE"]
[SourceTitle "playchess.com"]
[Source "ChessBase"]
[SourceQuality "1"]
[TimeControl "40/5400+30:1800+30"]

1. d4 {[%emt 0:00:06]} Nf6 {[%emt 0:00:23]} 2. Nf3 {[%emt 0:00:13]} d5 {[%emt 0:00:18]} 3. Bf4 {[%emt 0:00:30]} c5 {[%emt 0:00:26]} 4. c3 {[%emt 0:00:38]} Qb6 {[%emt 0:01:14]} 5. Qb3 {[%emt 0:00:43]} c4 {[%emt 0:00:22]} 6. Qc2 {[%emt 0:00:09]} g6 {[%emt 0:02:30]} 7. Nbd2 {[%emt 0:19:30]} Bf5 {[%emt 0:00:20]} 8. Qc1 {[%emt 0:00:19]} Nc6 {[%emt 0:08:39]} 9. Be5 {[%emt 0:06:09]} Nxe5 {[%emt 0:05:48]} 10. Nxe5 {[%emt 0:05:15]} Bg7 {[%emt 0:02:12]} 11. g3 {[%emt 0:06:16]} Ne4 {[%emt 0:04:36]} 12. Nef3 {[%emt 0:17:13]} Bh6 {[%emt 0:07:27]} 13. Bg2 {[%emt 0:03:32]} O-O {[%emt 0:07:36]} 14. O-O {[%emt 0:02:04]} Qe6 {[%emt 0:11:50]} 15. Re1 {[%emt 0:06:05]} Bh3 {[%emt 0:07:38]} 16. Qc2 {[%emt 0:05:15]} Bf5 {[%emt 0:03:32]} 17. Qd1 {[%emt 0:02:45]} Rfd8 {[%emt 0:02:05]} 18. e3 {[%emt 0:03:16]} Nf6 {[%emt 0:05:23]} 19. Ne5 {[%emt 0:04:18]} Qb6 {[%emt 0:06:41]} 20. b3 {[%emt 0:02:44]} cxb3 {[%emt 0:00:30]} 21. axb3 {[%emt 0:00:02]} Nd7 {[%emt 0:01:46]} 22. Nxd7 {[%emt 0:05:07]} Rxd7 {[%emt 0:00:07]} 23. g4 {[%emt 0:00:39]} Be6 {[%emt 0:02:32]} 24. f4 {[%emt 0:00:24]} Rc8 {[%emt 0:01:16]} 25. Rc1 {[%emt 0:00:58]} Rdc7 {[%emt 0:00:40]} 26. Nb1 {[%emt 0:03:00]} Qd6 {[%emt 0:01:37]} 27. Qf3 {[%emt 0:01:29]} Qd7 {[%emt 0:01:29]} 28. h3 {[%emt 0:00:39]} a5 {[%emt 0:02:16]} 29. Rcd1 {[%emt 0:02:09]} f6 {[%emt 0:00:49]} 30. Bf1 {[%emt 0:02:26]} Qd6 {[%emt 0:01:18]} 31. c4 {[%emt 0:00:19]} dxc4 {[%emt 0:01:06]} 32. d5 {[%emt 0:00:03]} Bd7 {[%emt 0:01:01]} 33. bxc4 {[%emt 0:01:01]} b5 {[%emt 0:00:21]} 34. cxb5 {[%emt 0:00:25]} Rb8 {[%emt 0:00:26]} 35. h4 {[%emt 0:00:28]} Bxb5 {[%emt 0:00:41]} 36. g5 {[%emt 0:00:32]} Bg7 {[%emt 0:00:37]} 37. Bh3 {[%emt 0:00:59]} f5 {[%emt 0:04:40]} 38. e4 {[%emt 0:00:53]} fxe4 {[%emt 0:00:23]} 39. Qxe4 {[%emt 0:00:16]} Kh8 {[%emt 0:01:21]} 40. Rd2 {[%emt 0:00:49]} Rc4 {[%emt 0:02:08]} 41. Qxe7 {[%emt 0:07:50]} Qxf4 {[%emt 0:01:42]} 42. Rf1 {[%emt 0:05:01]} Bd4+ {[%emt 0:01:10]} 43. Kh1 {[%emt 0:02:35]} Bc5 {[%emt 0:04:11]} 44. Qf6+ {[%emt 0:09:10]} Qxf6 {[%emt 0:00:08]} 45. Rxf6 {[%emt 0:00:44]} Rc1+ {[%emt 0:00:37]} 0-1